bitfinex-derivatives/quotes_ETHF0:USTF0_20251210
["timestamp","ask_amount","ask_price","bid_price","bid_amount"]
[1765400184818,3.2078,3353.7,3353.6,0.15161552]
[1765400185624,6.0,3353.7,3352.5,3.2078]
[1765400185820,2.4186,3353.9,3353.3,0.14906]
[1765400186020,3.2078,3353.4,3353.3,0.14906]
[1765400186421,5.6264,3353.9,3353.7,0.14904]
[1765400186818,5.6264,3353.9,3353.7,0.15202534]
[1765400187120,3.2078,3353.9,3353.8,0.14904]
[1765400188923,3.2078,3353.9,3353.2,11.572]
[1765400189123,3.2078,3353.3,3353.2,11.572]
[1765400189524,3.2078,3353.7,3353.2,11.572]
[1765400189727,0.00373548,3354.0,3353.3,3.2078]
[1765400189931,0.00373548,3354.0,3353.9,0.14903]
[1765400190221,2.53783548,3354.0,3353.9,0.14903]
[1765400191024,0.00373548,3354.0,3353.9,9.35683]
[1765400191216,0.00446914,3354.2,3354.1,0.14902]
[1765400191628,9.14e-06,3354.2,3354.1,6.14902]
[1765400191834,3.2078,3354.9,3354.8,0.14899]
[1765400192133,2.4186,3355.2,3355.1,0.14898]
[1765400192319,2.42246994,3355.2,3355.1,0.14898]
[1765400192519,2.42246994,3355.2,3354.4,3.283]
[1765400192722,3.2078,3354.5,3354.4,3.283]
[1765400192926,3.2078,3354.5,3354.4,3.43201]
[1765400193428,3.2078,3354.5,3354.4,3.283]
[1765400193624,3.21226914,3355.1,3355.0,0.14898]
[1765400195029,3.21226914,3355.1,3355.0,0.41754461]
[1765400195331,0.00446914,3355.1,3355.0,0.41754461]
[1765400195820,0.00446914,3355.1,3355.0,11.97554461]
[1765400196022,0.00446914,3355.1,3355.0,11.558]
[1765400196224,3.21226914,3355.1,3354.7,10.82561274]
[1765400196431,3.21226914,3355.1,3354.9,0.14899]
[1765400198234,3.21226914,3355.1,3355.0,0.14898]
[1765400198729,3.21226914,3355.1,3354.1,0.15348914]
[1765400198935,3.21226914,3355.1,3354.1,0.4178451]
[1765400198936,3.2078,3354.5,3354.1,0.4178451]
[1765400199819,3.2078,3354.5,3354.4,0.14901]
[1765400201030,9.2078,3354.5,3354.1,0.00446914]
[1765400201333,9.2078,3354.5,3353.6,0.14905]
[1765400201534,3.2078,3353.7,3353.6,0.14905]
[1765400201829,3.2078,3353.7,3353.3,0.00302495]
[1765400202429,3.2078,3353.7,3353.6,0.14905]
[1765400204236,3.2078,3353.7,3353.3,0.00302495]
[1765400204733,3.2078,3354.1,3353.6,0.14905]
[1765400204937,3.2078,3353.7,3353.6,0.14905]
[1765400206132,3.2078,3354.1,3353.4,2.5005]
[1765400206536,3.2078,3354.9,3354.3,2.5005]
[1765400206737,3.2078,3354.9,3354.8,0.14899]
[1765400210341,0.00446914,3355.1,3354.8,0.14899]
[1765400210542,3.2078,3354.9,3354.8,0.14899]
[1765400211842,3.2078,3354.9,3353.8,13.4858]
[1765400212039,3.2078,3354.9,3354.8,0.14899]
[1765400214339,3.2078,3354.9,3353.5,3.69480237]
[1765400214638,3.2078,3353.9,3353.8,0.14903]
[1765400215635,3.2078,3354.4,3353.9,0.14903]
[1765400215940,3.2078,3354.0,3353.9,0.14903]
[1765400216143,3.2078,3354.4,3354.3,0.14902]
[1765400217143,3.2078,3354.4,3353.6,0.14905]
[1765400217341,3.2078,3353.7,3353.6,0.14905]
[1765400219043,3.2078,3353.7,3352.4,3.69480237]
[1765400219347,3.2078,3352.8,3352.4,0.1491]
[1765400219543,3.2078,3352.8,3352.5,0.1491]
[1765400219948,0.0028822,3352.8,3352.5,0.15283494]
[1765400220348,0.0028822,3352.8,3351.8,0.14912]
[1765400220657,3.2078,3352.0,3351.4,12.561]
[1765400220947,3.2078,3352.0,3351.4,12.82184528]
[1765400221147,3.2078,3352.0,3351.9,0.14912]
[1765400221352,3.2078,3352.0,3351.9,3.582e-05]
[1765400221541,3.2078,3352.0,3351.1,0.14915]
[1765400221850,3.2078,3351.5,3351.1,0.14915]
[1765400222047,3.2078,3351.5,3350.5,8.231]
[1765400222248,3.2078,3350.8,3350.5,8.231]
[1765400222452,3.2078,3350.8,3350.5,8.23428885]
[1765400222643,3.2078,3350.8,3350.5,0.00328885]
[1765400223152,3.2078,3350.8,3347.8,6.70741727]
[1765400223153,3.2078,3350.8,3349.3,3.2078]
[1765400223339,3.2078,3350.2,3349.7,0.14922]
[1765400223543,3.2078,3350.0,3349.8,0.14922]
[1765400223743,3.2078,3350.0,3349.0,12.551]
[1765400223944,3.2078,3349.2,3349.0,12.551]
[1765400224140,3.21027424,3349.2,3349.0,12.55484784]
[1765400224954,3.21027424,3349.2,3349.1,0.14925]
[1765400225845,3.21027424,3349.2,3349.0,0.00384784]
[1765400227453,3.21027424,3349.2,3348.2,0.18799857]
[1765400227659,3.2078,3348.3,3348.2,0.18799857]
[1765400228059,3.2078,3348.7,3348.4,0.14927]
[1765400228350,0.00247424,3349.2,3348.4,0.14927]
[1765400228351,3.2078,3348.9,3348.4,0.14927]
[1765400228655,3.2078,3348.5,3348.4,0.15251125]
[1765400229050,3.2078,3348.6,3348.4,0.15251125]
[1765400229550,3.2078,3349.0,3348.4,0.15251125]
[1765400229747,3.2078,3348.6,3347.7,0.14931]
[1765400229948,3.2078,3347.9,3347.7,0.14931]
[1765400230150,3.2078,3347.9,3347.1,0.05196426]
[1765400230350,3.2078,3347.5,3345.3,0.13]
[1765400230558,3.2078,3346.5,3345.3,0.13]
[1765400230761,0.00216108,3346.5,3345.3,0.1325002]
[1765400230951,0.00216108,3346.5,3346.0,2.5414]
[1765400231145,0.00216108,3346.5,3346.4,0.14937]
[1765400231852,0.00447587,3347.8,3346.4,6.0]
[1765400232055,3.2078,3347.4,3347.3,0.14933]
[1765400232256,3.2078,3347.7,3347.3,0.14933]
[1765400232557,3.2078,3347.7,3346.3,8.03]
[1765400232760,3.2078,3347.1,3346.3,8.03]
[1765400233054,3.21033689,3347.1,3346.3,8.03]
[1765400233262,3.21033689,3347.1,3347.0,2.69074]
[1765400233447,0.00253689,3347.1,3347.0,2.69074]
[1765400233654,3.21227587,3347.8,3347.7,0.14931]
[1765400233856,0.00447587,3347.8,3347.7,3.35711]
[1765400234057,0.00447587,3347.8,3347.7,18.74131]
[1765400234358,0.00447587,3347.8,3347.7,0.14931]
[1765400234554,0.00679574,3347.8,3347.7,0.15228074]
[1765400235863,3.2078,3348.8,3347.7,6.00297074]
[1765400236057,3.2078,3349.2,3348.8,0.14926]
[1765400236255,3.2078,3349.2,3348.4,3.2078]
[1765400236660,3.2078,3349.2,3349.0,0.14925]
[1765400236858,3.20996867,3349.2,3348.8,0.0044831]
[1765400237559,3.20996867,3349.2,3348.0,5.7492]
[1765400237752,3.2078,3348.4,3348.0,3.2078]
[1765400238160,3.2078,3348.4,3347.8,0.1493]
[1765400238663,3.2078,3349.0,3348.0,2.5414]
[1765400238965,3.2078,3349.0,3348.9,0.14926]
[1765400239666,0.00216867,3349.2,3349.1,0.14925]
[1765400240056,0.0044831,3349.4,3349.3,0.14924]
[1765400240255,3.2078,3349.8,3349.0,2.5414]
[1765400240256,3.2078,3349.8,3349.7,0.14922]
[1765400240458,3.2078,3350.7,3350.0,2.5414]
[1765400240765,3.2078,3350.7,3350.1,11.894]
[1765400240958,3.2078,3350.7,3350.6,0.14918]
[1765400240959,3.21164614,3350.7,3350.6,0.14918]
[1765400241154,3.21164614,3350.7,3350.3,0.00447628]
[1765400243052,3.21164614,3350.7,3350.5,0.14918]
[1765400244657,3.21164614,3350.7,3350.3,0.00447628]
[1765400245059,3.21164614,3350.7,3349.1,0.14924]
[1765400245263,3.2078,3349.2,3349.1,0.14924]
[1765400246158,3.2078,3349.2,3349.1,0.15210673]
[1765400246555,9.2078,3349.2,3347.7,3.2078]
[1765400246756,3.2078,3348.1,3347.8,0.1493]
[1765400247160,3.2078,3348.1,3347.9,0.1493]
[1765400247361,3.2078,3348.4,3348.1,0.14929]
[1765400247569,0.00309365,3348.4,3348.1,0.00262147]
[1765400247871,0.00309365,3348.4,3348.3,0.14928]
[1765400248065,3.21089365,3348.4,3348.3,0.14928]
[1765400248267,3.21089365,3348.4,3348.3,6.14928]
[1765400248466,3.21089365,3348.4,3348.3,0.14928]
[1765400248768,3.21089365,3348.4,3348.1,0.00262147]
[1765400249967,0.00309365,3348.4,3348.1,0.00262147]
[1765400250171,0.00309365,3348.4,3348.3,0.14928]
[1765400250368,0.00447628,3348.8,3348.7,0.14926]
[1765400250560,3.2078,3350.0,3349.0,2.4844]
[1765400250764,3.2078,3350.0,3349.9,0.14921]
[1765400251163,3.2078,3350.0,3349.1,10.28825]
[1765400251363,3.2078,3349.6,3349.3,0.14924]
[1765400251770,3.2078,3349.6,3349.4,12.71223]
[1765400251969,3.2078,3349.6,3349.4,0.14923]
[1765400252172,3.2078,3349.6,3349.5,0.14923]
[1765400253664,3.58387025,3352.7,3351.5,0.14914]
[1765400253868,0.77229979,3352.6,3351.8,3.2078]
[1765400254075,0.74805369,3352.5,3351.5,0.14914]
[1765400254268,3.2078,3352.5,3351.5,0.14914]
[1765400254577,0.00447628,3352.3,3351.7,0.00447628]
[1765400254764,3.2078,3352.1,3351.7,0.00447628]
[1765400254970,2.5126,3352.0,3350.7,3.2078]
[1765400255175,3.2078,3351.7,3350.6,0.14918]
[1765400255365,3.2078,3351.3,3350.0,3.2078]
[1765400255572,3.2078,3350.9,3350.0,3.35701]
[1765400255972,3.2078,3350.9,3350.1,0.00447628]
[1765400256773,43.3126,3351.0,3350.4,3.2078]
[1765400257272,2.5126,3351.0,3350.4,3.2078]
[1765400257868,2.5126,3351.0,3350.2,0.1492]
[1765400258076,3.2078,3350.7,3350.2,0.1492]
[1765400259775,6.0,3350.6,3350.2,0.1492]
[1765400259980,3.2078,3350.3,3350.2,0.1492]
[1765400260181,0.00447628,3350.6,3350.2,0.1492]
[1765400260775,3.2078,3350.3,3350.0,0.00286213]
[1765400261073,3.2078,3350.3,3349.4,0.14923]
[1765400261474,3.2078,3350.3,3349.5,0.14923]
[1765400261668,3.2078,3349.8,3349.5,0.14923]
[1765400261882,3.2078,3349.8,3348.7,3.35706]
[1765400262076,3.2078,3349.3,3348.7,3.35980462]
[1765400262681,3.2078,3349.3,3348.7,4.62e-06]
[1765400262682,3.2078,3348.9,3348.7,4.62e-06]
[1765400262881,3.2078,3349.3,3348.3,3.2078]
[1765400263181,0.00250624,3349.8,3348.8,0.14926]
[1765400263182,3.2078,3349.5,3348.8,0.14926]
[1765400263382,2.5126,3349.0,3348.8,0.14926]
[1765400263573,0.00447628,3349.5,3348.9,0.14925]
[1765400263781,3.2078,3349.3,3348.9,0.152375]
[1765400263976,2.5126,3349.0,3348.9,0.003125]
[1765400264778,2.5126,3349.0,3347.9,7.271]
[1765400265083,2.5126,3349.0,3348.4,0.14928]
[1765400265678,3.2078,3348.9,3348.4,0.15289699]
[1765400266082,3.2078,3348.9,3348.6,0.14927]
[1765400266277,3.2078,3349.3,3348.4,0.00361699]
[1765400266582,3.2078,3349.3,3348.5,3.2078]
[1765400266781,3.2078,3349.3,3348.8,0.14926]
[1765400267687,3.2078,3349.3,3348.5,3.2078]
[1765400268487,2.0461547,3351.7,3349.2,2.39993642]
[1765400268681,0.74248063,3351.6,3351.3,3.2078]
[1765400268880,1.81598786,3351.4,3350.2,0.1492]
[1765400269179,3.2078,3350.9,3350.2,0.1492]
[1765400269381,3.2078,3350.9,3349.8,2.4844]
[1765400269586,3.2078,3350.9,3350.1,3.2078]
[1765400269786,0.00447628,3350.8,3350.2,0.00447628]
[1765400270386,0.00447628,3350.8,3350.7,2.4844]
[1765400270785,0.00447628,3350.8,3350.5,0.14918]
[1765400271985,0.00447628,3350.8,3350.6,0.14918]
[1765400272392,0.00447628,3350.8,3350.7,2.63358]
[1765400272987,0.00447628,3350.8,3350.7,0.14918]
[1765400273786,0.00447628,3350.8,3350.7,2.63358]
[1765400274791,3.2078,3352.2,3351.5,0.14914]
[1765400274995,3.2078,3352.2,3351.6,2.63353]
[1765400275696,3.21465255,3352.2,3351.8,0.14913]
[1765400276996,3.21465255,3352.2,3352.1,0.14911]
[1765400277200,0.00685255,3352.2,3352.1,3.35691]
[1765400278296,0.00685255,3352.2,3352.1,0.14911]
[1765400278902,0.00685255,3352.2,3351.7,11.6098]
[1765400279196,0.00685255,3352.2,3351.6,2.48887628]
[1765400279197,3.2078,3351.8,3351.6,2.48887628]
[1765400279793,3.2078,3351.8,3351.6,0.00447628]
[1765400280190,9.2078,3351.8,3350.3,3.2078]
[1765400280394,3.2078,3351.1,3350.3,3.2078]
[1765400280796,3.2078,3350.7,3350.3,3.62200184]
[1765400280993,3.2078,3351.1,3350.3,3.35699]
[1765400281192,5.02378786,3351.5,3350.8,3.2078]
[1765400281393,3.21465255,3352.2,3351.6,0.14913]
[1765400281591,3.21465255,3352.2,3351.6,2.7103]
[1765400281796,0.00685255,3352.2,3352.1,3.35691]
[1765400282196,3.2078,3352.9,3352.8,0.14908]
[1765400282403,3.2078,3353.3,3353.2,0.14906]
[1765400282594,3.2078,3353.7,3353.4,0.14905]
[1765400282795,3.2078,3354.1,3353.4,2.85935]
[1765400283292,3.21500788,3354.1,3353.6,0.14905]
[1765400283601,3.21500788,3354.1,3353.7,0.14904]
[1765400283797,3.21500788,3354.1,3353.4,0.00758255]
[1765400283997,3.2078,3353.5,3353.4,0.00758255]
[1765400284203,3.2078,3354.0,3353.4,0.00758255]
[1765400284395,3.2078,3355.3,3354.3,0.14901]
[1765400284594,3.2078,3355.3,3354.4,9.759]
[1765400284793,2.38944989,3357.3,3355.0,2.7103]
[1765400285097,3.2078,3356.6,3355.7,0.14895]
[1765400285294,1.23784081,3357.5,3356.3,0.14893]
[1765400285500,0.00446927,3357.2,3356.6,0.00446927]
[1765400287199,0.00446927,3357.2,3357.1,0.14889]
[1765400287398,0.00239056,3357.5,3357.2,2.7103]
[1765400287598,0.00239056,3357.5,3357.2,12.1423]
[1765400287803,0.00239056,3357.5,3357.2,2.7103]
[1765400288305,0.00239056,3357.5,3357.2,2.85919]
[1765400288704,0.00239056,3357.5,3357.3,5.797]
[1765400289205,0.00239056,3357.5,3357.2,15.35619]
[1765400289400,0.00239056,3357.5,3357.2,2.85919]
[1765400290207,0.00239056,3357.5,3356.6,0.00446927]
[1765400290409,3.2078,3357.3,3356.6,0.00446927]
[1765400290997,3.2078,3356.9,3356.6,0.00446927]
[1765400291306,3.2078,3357.3,3356.6,0.00446927]
[1765400291702,3.2078,3356.9,3356.6,0.00446927]
[1765400291905,3.2078,3356.9,3355.9,3.2078]
[1765400292109,3.2078,3356.5,3355.9,3.2078]
[1765400292307,3.2078,3356.9,3356.2,0.14893]
[1765400293011,3.2078,3356.9,3356.3,0.00763627]
[1765400294108,3.2078,3356.5,3356.3,0.00763627]
[1765400295512,9.2078,3356.5,3355.2,3.2078]
[1765400295713,3.2078,3355.8,3355.0,2.7103]
[1765400296015,3.2078,3355.8,3354.8,3.2078]
[1765400296412,3.2078,3355.4,3354.8,3.2078]
[1765400296616,3.21226927,3355.4,3354.8,0.00832873]
[1765400297317,3.2078,3354.9,3354.8,0.00832873]
[1765400297511,3.21151988,3354.9,3354.8,0.00832873]
[1765400297715,11.60096977,3354.9,3353.8,0.14904]
[1765400297915,3.2078,3354.5,3353.9,0.14903]
[1765400298310,3.2078,3354.1,3353.9,0.14903]
[1765400298513,3.2078,3354.1,3353.1,0.14907]
[1765400298716,3.2078,3353.7,3353.3,0.00446927]
[1765400300313,0.00446927,3353.9,3353.3,3.36132927]
[1765400300523,0.00446927,3353.9,3353.4,0.14906]
[1765400301431,3.2078,3353.7,3353.4,0.14906]
[1765400302523,3.2078,3353.7,3353.5,0.14905]
[1765400302829,0.00446927,3353.9,3353.8,0.14904]
[1765400303327,0.00446927,3353.9,3353.3,3.21226927]
[1765400303623,0.00446927,3353.9,3353.3,0.00446927]
[1765400304824,3.2078,3353.7,3353.3,0.00446927]
[1765400306129,0.00446927,3353.9,3353.5,3.2078]
[1765400306422,0.00446927,3353.9,3353.3,0.00446927]
[1765400307027,3.21226927,3353.9,3353.3,0.00446927]
[1765400307420,3.21226927,3353.9,3353.6,0.14905]
[1765400308121,3.21226927,3353.9,3353.8,0.14904]
[1765400308425,0.00446927,3353.9,3353.8,0.14904]
[1765400310226,3.2078,3354.3,3354.2,0.14902]
[1765400311024,5.02021719,3354.3,3353.5,3.2078]
[1765400311228,0.00446927,3354.2,3353.6,0.14905]
[1765400313034,0.00446927,3354.2,3353.7,0.14904]
[1765400316128,3.2078,3353.8,3353.3,0.00446927]
[1765400316337,5.2191,3353.4,3352.4,0.1491]
[1765400316630,3.2078,3352.9,3352.4,0.1491]
[1765400317329,3.2078,3352.9,3352.4,0.00227262]
[1765400319329,3.2078,3352.5,3352.4,0.00227262]
[1765400319637,3.2100754,3352.5,3352.4,0.00227262]
[1765400319933,0.0022754,3352.5,3352.4,0.15137262]
[1765400321138,3.2078,3354.0,3352.8,2.4401]
[1765400321337,3.2078,3353.9,3352.9,3.2078]
[1765400321640,3.2078,3354.3,3352.9,3.2078]
[1765400321828,0.76478896,3354.2,3352.9,3.2078]
[1765400322029,3.2078,3353.9,3352.9,3.2078]
[1765400322231,3.21086177,3353.9,3352.9,3.2078]
[1765400322634,3.21086177,3353.9,3353.2,0.14906]
[1765400323233,3.2078,3353.3,3352.6,0.14909]
[1765400326143,3.2078,3352.9,3352.6,0.14909]
[1765400326948,3.2078,3353.3,3352.8,2.4401]
[1765400327147,0.80281778,3353.2,3352.6,0.14909]
[1765400327447,3.2078,3353.3,3352.6,0.14909]
[1765400327646,3.2078,3353.3,3352.8,2.4401]
[1765400327945,0.00306177,3353.9,3352.8,2.4401]
[1765400328243,0.00306177,3353.9,3353.6,5.6479]
[1765400328747,0.00306177,3353.9,3353.8,0.14904]
[1765400330743,0.00446927,3354.2,3354.1,0.14902]
[1765400330944,3.2078,3355.5,3354.8,0.14899]
[1765400331243,3.2078,3355.1,3354.3,0.14901]
[1765400331645,3.21159059,3355.1,3354.4,2.4401]
[1765400331843,3.21605986,3355.1,3354.5,0.14901]
[1765400332236,3.21605986,3355.1,3354.4,0.00446927]
[1765400332444,3.21605986,3355.1,3354.4,2.4401]
[1765400332747,3.21605986,3355.1,3354.7,0.149]
[1765400333449,3.21605986,3355.1,3354.7,0.00366302]
[1765400334748,3.21605986,3355.1,3354.6,0.00446927]
[1765400334949,3.2078,3354.7,3354.6,0.00446927]
[1765400335851,3.2078,3354.7,3354.6,0.00697146]
[1765400338651,3.2078,3354.7,3354.6,0.15597146]
[1765400340852,0.00825986,3355.1,3354.6,0.15597146]
[1765400341266,0.00825986,3355.1,3354.6,0.00697146]
[1765400341755,0.00825986,3355.1,3354.6,3.21477146]
[1765400342053,0.00825986,3355.1,3355.0,3.35678]
[1765400342256,1.98542206,3356.6,3356.0,0.14894]
[1765400342552,5.19322206,3356.6,3356.0,0.14894]
[1765400343157,5.20060749,3356.6,3355.8,5.6354]
[1765400343353,5.20060749,3356.6,3355.8,3.2078]
[1765400343558,3.2078,3355.9,3355.1,5.6354]
[1765400344162,3.2078,3356.5,3355.6,3.35676]
[1765400344351,3.2078,3356.5,3355.7,0.14895]
[1765400344749,0.00738543,3356.6,3356.5,0.14892]
[1765400345459,3.2078,3357.8,3357.1,0.14889]
[1765400345762,3.2078,3357.4,3357.1,0.14889]
[1765400345950,3.2078,3357.4,3356.4,0.14892]
[1765400346258,3.2078,3357.4,3356.5,0.14892]
[1765400346462,0.00446927,3357.3,3356.6,0.00446927]
[1765400346653,0.00446927,3357.3,3357.2,0.14889]
[1765400348256,0.00446927,3357.3,3357.2,6.40954628]
[1765400348454,3.2078,3359.0,3358.2,0.14884]
[1765400348654,3.2078,3358.5,3357.6,2.4276]
[1765400348854,3.2078,3358.9,3358.0,3.2078]
[1765400349057,3.2078,3359.7,3358.0,3.2078]
[1765400349258,3.2078,3359.3,3358.5,3.2078]
[1765400349462,3.2078,3359.3,3358.6,0.00446927]
[1765400349463,3.2078,3358.9,3358.6,0.00446927]
[1765400350658,0.00446927,3359.2,3358.6,0.15328927]
[1765400350958,3.2078,3358.7,3358.6,0.00446927]
[1765400351158,0.00446927,3359.2,3358.6,0.00446927]
[1765400351357,0.00446927,3359.2,3358.7,3.2078]
[1765400351963,0.00446927,3359.2,3358.6,0.15328927]
[1765400352262,0.00446927,3359.2,3358.6,0.00446927]
[1765400352453,0.00446927,3359.2,3358.9,0.14881]
[1765400352657,0.00446927,3359.2,3358.9,0.15223705]
[1765400352853,0.00446927,3359.2,3358.9,0.00342705]
[1765400353151,0.00446927,3359.2,3358.1,0.14885]
[1765400353152,9.89919133,3359.2,3357.1,3.2078]
[1765400353359,3.35664,3358.3,3356.7,0.14891]
[1765400353563,3.2078,3357.7,3356.7,0.14891]
[1765400354061,3.2078,3356.8,3356.0,5.78434]
[1765400354362,3.21226927,3356.7,3356.1,0.00446927]
[1765400354662,2.13433206,3356.6,3355.2,5.6354]
[1765400354864,1.98542206,3356.0,3354.6,3.2078]
[1765400355067,3.2078,3355.5,3354.5,3.2078]
[1765400355369,3.2078,3355.1,3354.0,0.14903]
[1765400355561,3.2078,3355.1,3354.3,2.4276]
[1765400355761,0.00446927,3355.0,3354.4,0.00446927]
[1765400355958,3.2078,3354.7,3354.4,0.00446927]
[1765400356163,5.19322206,3354.7,3353.7,3.2078]
[1765400356467,3.2078,3354.2,3353.3,3.2078]
[1765400357058,0.00378618,3354.2,3353.8,3.2078]
[1765400357262,0.00378618,3354.2,3353.4,0.00446927]
[1765400357457,0.00378618,3354.2,3353.7,0.14904]
[1765400357658,0.00378618,3354.2,3353.4,0.00446927]
[1765400359068,0.00378618,3354.2,3353.4,2.36516927]
[1765400359269,0.00378618,3354.2,3353.6,0.14904]
[1765400359661,0.00378618,3354.2,3353.4,0.00446927]
[1765400359968,3.2078,3353.9,3353.4,0.00446927]
[1765400360160,3.2078,3353.5,3353.4,0.00446927]
[1765400360667,3.2078,3353.5,3353.4,2.36516927]
[1765400361568,0.00378618,3354.2,3353.4,2.36516927]
[1765400361569,3.2078,3354.1,3353.4,8.36516927]
[1765400361765,3.2078,3355.2,3354.3,2.3607]
[1765400361963,3.2078,3355.6,3354.4,3.2078]
[1765400362168,3.2078,3355.6,3354.8,3.2078]
[1765400362472,3.2078,3355.2,3354.4,3.2078]
[1765400362666,3.2078,3356.0,3355.2,2.50967]
[1765400362864,0.00340375,3356.0,3355.2,0.14897]
[1765400363069,3.21120375,3356.0,3355.2,0.14897]
[1765400363369,3.2078,3355.6,3354.4,0.14901]
[1765400363569,0.00340375,3356.0,3353.7,0.14904]
[1765400363570,3.2078,3355.2,3353.7,0.14904]
[1765400363765,3.2078,3355.2,3353.5,3.2078]
[1765400363766,3.2078,3354.6,3354.1,0.00446927]
[1765400364173,3.2078,3354.6,3354.1,0.15348927]
[1765400364476,3.2078,3354.6,3354.4,0.14901]
[1765400365069,3.2078,3354.6,3354.1,0.00446927]
[1765400365772,3.2078,3354.2,3354.1,0.00446927]
[1765400367471,44.0078,3354.7,3354.1,0.00446927]
[1765400367671,0.00446927,3354.8,3354.1,0.00446927]
[1765400367872,0.00446927,3354.8,3354.2,0.14902]
[1765400368068,0.00446927,3354.8,3354.3,5.5283]
[1765400368269,0.00446927,3354.8,3354.3,2.3205]
[1765400368668,0.00446927,3354.8,3354.3,5.5283]
[1765400368870,0.00446927,3354.8,3354.7,3.2078]
[1765400369072,0.00446927,3354.8,3354.7,3.3568]
[1765400369377,0.00446927,3354.8,3354.4,0.14901]
[1765400369577,0.00446927,3354.8,3354.5,0.14901]
[1765400369770,3.2078,3354.7,3354.1,0.00446927]
[1765400370075,3.2078,3354.7,3354.3,2.46951]
[1765400370270,0.00446927,3354.8,3354.3,5.5283]
[1765400370469,0.00446927,3354.8,3354.6,0.149]
[1765400370675,0.00446927,3354.8,3354.7,3.2078]
[1765400370870,0.00446927,3354.8,3354.7,3.3568]
[1765400371169,3.2078,3355.9,3355.2,2.3205]
[1765400371371,3.2078,3355.9,3355.8,0.14895]
[1765400371578,3.2078,3355.9,3355.8,0.15217332]
[1765400372373,0.00446927,3356.2,3356.1,2.46944]
[1765400372978,3.2078,3357.3,3356.7,0.1489]
[1765400373477,3.21161727,3357.3,3356.7,0.1489]
[1765400374079,3.21608654,3357.3,3356.7,0.1489]
[1765400374280,0.00828654,3357.3,3357.0,2.3205]
[1765400374473,0.00828654,3357.3,3357.0,2.4694]
[1765400375377,3.2078,3358.3,3357.0,8.3205]
[1765400375574,3.2078,3358.3,3357.1,3.2078]
[1765400375778,1.0471,3358.8,3356.1,12.2205]
[1765400375779,3.2078,3357.4,3356.1,2.3205]
[1765400376082,3.2078,3357.4,3356.6,0.14891]
[1765400376279,0.00446927,3357.3,3356.7,0.00446927]
[1765400376778,3.2078,3356.8,3356.7,0.00446927]
[1765400378072,3.2078,3357.1,3356.7,0.00446927]
[1765400378277,0.00446927,3357.3,3357.2,0.14889]
[1765400379079,0.00446927,3357.3,3357.2,6.14889]
[1765400379280,0.00376409,3357.4,3357.3,0.14888]
[1765400379481,3.2078,3358.8,3358.0,0.14885]
[1765400379775,3.2078,3358.8,3358.2,3.35664]
[1765400379981,4.1824,3358.8,3358.2,0.14884]
[1765400380181,1.98305519,3358.3,3357.0,2.3205]
[1765400380373,3.2078,3357.1,3357.0,1.69169033]
[1765400380573,1.98305519,3357.4,3356.7,0.00446927]
[1765400380781,0.00295848,3358.0,3356.1,2.3205]
[1765400380782,3.03356326,3357.1,3356.1,2.3205]
[1765400381082,0.1489,3356.9,3355.5,0.14896]
[1765400381682,0.14887,3357.5,3355.9,0.00446927]
[1765400381980,3.03356326,3357.1,3355.9,0.00446927]
[1765400382276,0.83066118,3357.0,3355.9,0.00446927]
[1765400382577,0.14892,3356.5,3355.9,0.00446927]
[1765400382779,2.53876538,3356.5,3355.9,0.00446927]
[1765400382979,0.14889,3357.2,3355.9,0.00446927]
[1765400383178,2.38984538,3357.0,3355.9,0.00446927]
[1765400384084,2.38984538,3356.4,3355.9,0.00446927]
[1765400385085,2.38984538,3356.4,3355.5,0.00346693]
[1765400385086,0.14894,3356.1,3355.5,0.00346693]
[1765400385780,3.2078,3355.6,3355.5,0.00346693]
[1765400385980,3.21099302,3355.6,3355.5,0.00346693]
[1765400386380,2.89103879,3355.6,3355.5,0.00346693]
[1765400386582,0.00319302,3355.6,3355.5,0.00346693]
[1765400387383,0.00446927,3355.9,3355.5,6.15242693]
[1765400387585,0.00446927,3355.9,3355.8,0.14895]
[1765400387890,3.2078,3355.9,3355.5,0.00346693]
[1765400388273,3.21046123,3355.9,3355.5,0.00346693]
[1765400390385,3.21046123,3355.9,3355.5,0.15242693]
[1765400391185,3.21046123,3355.9,3355.5,0.00346693]
[1765400391384,5.60030661,3355.9,3355.5,0.00346693]
[1765400391589,11.60030661,3355.9,3355.2,0.00446927]
[1765400391776,3.2078,3355.3,3355.2,0.00446927]
[1765400391981,3.2078,3355.3,3354.5,0.149]
[1765400392587,3.2078,3355.3,3354.5,0.15234922]
[1765400392993,3.2078,3355.3,3354.6,0.00446927]
[1765400393190,5.59764538,3355.3,3354.6,0.00446927]
[1765400393389,3.2078,3354.9,3354.6,0.00446927]
[1765400393688,2.38984538,3354.7,3353.0,0.14907]
[1765400393990,3.2078,3353.6,3353.0,0.14907]
[1765400394692,3.21226927,3353.6,3353.0,0.15715638]
[1765400395181,0.00446927,3353.6,3353.0,0.00808638]
[1765400395384,3.2078,3353.1,3353.0,0.00808638]
[1765400395686,0.0025798,3353.1,3353.0,0.00808638]
[1765400395885,3.2103798,3353.1,3353.0,0.00808638]
[1765400396291,0.0025798,3353.1,3353.0,3.21588638]
[1765400396590,0.0025798,3353.1,3353.0,3.36495638]
[1765400396786,0.00446927,3353.6,3353.0,3.21588638]
[1765400397093,0.00446927,3353.6,3353.4,3.35686]
[1765400397283,0.14899,3354.9,3353.4,3.35686]
[1765400397284,3.2078,3354.9,3353.6,2.3205]
[1765400397486,3.2078,3354.9,3354.0,0.14903]
[1765400397686,3.2078,3354.6,3354.0,0.14903]
[1765400397889,0.00289876,3354.6,3354.0,0.14903]
[1765400398397,0.00736803,3354.6,3354.5,0.14901]
[1765400398894,3.2078,3355.8,3354.8,0.14899]
[1765400399199,2.38984538,3356.3,3355.2,2.5625]
[1765400399387,3.2078,3356.2,3355.3,3.2078]
[1765400399592,3.2078,3356.2,3355.2,2.5625]
[1765400399898,0.00446927,3356.0,3355.5,0.14896]
[1765400400098,0.00446927,3356.0,3355.5,0.15184794]
[1765400400992,2.38984538,3355.7,3355.5,0.00288794]